[Event "Titled Tuesday Blitz February 21 Early 2023"]
[White "Malka, Samuel"]
[Black "Fajdetic, Hrvoje"]
[WhiteFideId "20643675"]
[BlackFideId "14501945"]
[WhiteElo "2165"]
[BlackElo "2151"]
[Result "0-1"]
[Round "06"]
[TimeControl "180+2"]
[Date "2023.02.21"]
[WhiteClock "0:00:19"]
[BlackClock "0:00:08"]

1. d4 {[%clk 0:03:00]}  Nf6 {[%clk 0:02:32]} 2. c4 {[%clk 0:02:59]}  e5 {[%clk 0:02:31]} 3. dxe5 {[%clk 0:02:59]}  Ng4 {[%clk 0:02:31]} 4. e3 {[%clk 0:02:59]}  Nxe5 {[%clk 0:02:29]} 5. f4 {[%clk 0:03:00]}  Nec6 {[%clk 0:02:28]} 6. Nf3 {[%clk 0:03:00]}  a5 {[%clk 0:02:27]} 7. Bd3 {[%clk 0:03:00]}  Bc5 {[%clk 0:02:26]} 8. O-O {[%clk 0:03:00]}  d6 {[%clk 0:02:20]} 9. Nc3 {[%clk 0:02:59]}  Bg4 {[%clk 0:02:16]} 10. Ne4 {[%clk 0:02:49]}  Ba7 {[%clk 0:02:12]} 11. h3 {[%clk 0:02:39]}  Bxf3 {[%clk 0:02:07]} 12. Qxf3 {[%clk 0:02:40]}  Nd7 {[%clk 0:02:05]} 13. b3 {[%clk 0:02:34]}  Nf6 {[%clk 0:02:04]} 14. Bb2 {[%clk 0:02:30]}  Nxe4 {[%clk 0:01:56]} 15. Bxe4 {[%clk 0:02:24]}  O-O {[%clk 0:01:17]} 16. Qh5 {[%clk 0:02:05]}  h6 {[%clk 0:01:15]} 17. Qg4 {[%clk 0:01:53]}  Bxe3+ {[%clk 0:01:10]} 18. Kh1 {[%clk 0:01:50]}  Bd4 {[%clk 0:01:10]} 19. Bxd4 {[%clk 0:01:38]}  Nxd4 {[%clk 0:01:11]} 20. Bxb7 {[%clk 0:01:38]}  Rb8 {[%clk 0:01:03]} 21. Bd5 {[%clk 0:01:38]}  Nc2 {[%clk 0:00:53]} 22. Rad1 {[%clk 0:01:02]}  Ne3 {[%clk 0:00:52]} 23. Qf3 {[%clk 0:01:02]}  Nxf1 {[%clk 0:00:50]} 24. Rxf1 {[%clk 0:01:03]}  a4 {[%clk 0:00:47]} 25. f5 {[%clk 0:00:58]}  Qf6 {[%clk 0:00:46]} 26. Qd3 {[%clk 0:00:58]}  axb3 {[%clk 0:00:44]} 27. axb3 {[%clk 0:00:59]}  Rfe8 {[%clk 0:00:35]} 28. Bc6 {[%clk 0:00:57]}  Re5 {[%clk 0:00:31]} 29. Bd5 {[%clk 0:00:55]}  Rbe8 {[%clk 0:00:23]} 30. Bc6 {[%clk 0:00:48]}  Re3 {[%clk 0:00:21]} 31. Qc2 {[%clk 0:00:38]}  Re1 {[%clk 0:00:15]} 32. Qf2 {[%clk 0:00:38]}  Rxf1+ {[%clk 0:00:13]} 33. Qxf1 {[%clk 0:00:39]}  Re3 {[%clk 0:00:11]} 34. Qf4 {[%clk 0:00:27]}  Qa1+ {[%clk 0:00:09]} 35. Kh2 {[%clk 0:00:27]}  Qe5 {[%clk 0:00:10]} 36. Qxe5 {[%clk 0:00:26]}  dxe5 {[%clk 0:00:08]} 37. b4 {[%clk 0:00:21]}  Kf8 {[%clk 0:00:08]} 38. b5 {[%clk 0:00:20]}  Ke7 {[%clk 0:00:08]} 39. Bd5 {[%clk 0:00:21]}  f6 {[%clk 0:00:07]} 40. Kg1 {[%clk 0:00:20]}  Kd6 {[%clk 0:00:07]} 41. Be6 {[%clk 0:00:20]}  Kc5 {[%clk 0:00:07]} 42. Kf2 {[%clk 0:00:18]}  Rc3 {[%clk 0:00:06]} 43. Ke2 {[%clk 0:00:17]}  Rxc4 {[%clk 0:00:06]} 44. Bd7 {[%clk 0:00:16]}  Rb4 {[%clk 0:00:05]} 45. Ke3 {[%clk 0:00:16]}  Rxb5 {[%clk 0:00:05]} 46. Be6 {[%clk 0:00:16]}  Rb4 {[%clk 0:00:05]} 47. Kd3 {[%clk 0:00:17]}  Rd4+ {[%clk 0:00:04]} 48. Ke3 {[%clk 0:00:17]}  Kd6 {[%clk 0:00:05]} 49. Bg8 {[%clk 0:00:16]}  c5 {[%clk 0:00:06]} 50. Ke2 {[%clk 0:00:16]}  c4 {[%clk 0:00:06]} 51. Ke3 {[%clk 0:00:17]}  Kc5 {[%clk 0:00:07]} 52. Ke2 {[%clk 0:00:16]}  Kb4 {[%clk 0:00:07]} 53. Ke3 {[%clk 0:00:17]}  c3 {[%clk 0:00:08]} 54. Bh7 {[%clk 0:00:16]}  c2 {[%clk 0:00:07]} 55. Kf3 {[%clk 0:00:17]}  c1=Q {[%clk 0:00:08]} 56. Kg3 {[%clk 0:00:18]}  Qe3+ {[%clk 0:00:08]} 57. Kh2 {[%clk 0:00:19]}  Qf4+ {[%clk 0:00:08]} 0-1


[Site "https://www.chess.com"]

[Event "Titled Tuesday Blitz February 21 Early 2023"]
[White "Jimenez Jimenez, Leandro"]
[Black "Yeritsyan, Hayk"]
[WhiteFideId "6415253"]
[BlackFideId "13307320"]
[WhiteElo "2146"]
[BlackElo "2241"]
[Result "0-1"]
[Round "06"]
[TimeControl "180+2"]
[Date "2023.02.21"]
[WhiteClock "0:00:07"]
[BlackClock "0:00:04"]

1. d4 {[%clk 0:03:00]}  d5 {[%clk 0:02:59]} 2. c4 {[%clk 0:03:01]}  c6 {[%clk 0:03:00]} 3. cxd5 {[%clk 0:03:01]}  cxd5 {[%clk 0:03:01]} 4. Nc3 {[%clk 0:03:01]}  Nf6 {[%clk 0:03:01]} 5. Nf3 {[%clk 0:03:01]}  Nc6 {[%clk 0:03:01]} 6. Bf4 {[%clk 0:03:00]}  Bf5 {[%clk 0:03:02]} 7. Rc1 {[%clk 0:02:59]}  e6 {[%clk 0:03:02]} 8. Qb3 {[%clk 0:02:50]}  Bb4 {[%clk 0:02:19]} 9. Ne5 {[%clk 0:02:32]}  Qb6 {[%clk 0:02:01]} 10. e3 {[%clk 0:02:17]}  O-O {[%clk 0:01:55]} 11. Be2 {[%clk 0:02:08]}  Na5 {[%clk 0:01:39]} 12. Qa4 {[%clk 0:02:08]}  Rac8 {[%clk 0:01:30]} 13. O-O {[%clk 0:02:05]}  a6 {[%clk 0:01:09]} 14. Bg5 {[%clk 0:01:56]}  Bxc3 {[%clk 0:00:38]} 15. bxc3 {[%clk 0:01:46]}  Rfd8 {[%clk 0:00:27]} 16. c4 {[%clk 0:01:33]}  Nxc4 {[%clk 0:00:23]} 17. Nxc4 {[%clk 0:01:23]}  dxc4 {[%clk 0:00:21]} 18. Bxc4 {[%clk 0:01:24]}  Rc7 {[%clk 0:00:17]} 19. Bb3 {[%clk 0:01:13]}  Rdc8 {[%clk 0:00:16]} 20. Rxc7 {[%clk 0:01:05]}  Qxc7 {[%clk 0:00:16]} 21. Bf4 {[%clk 0:01:04]}  Qd7 {[%clk 0:00:10]} 22. Qa5 {[%clk 0:00:51]}  h6 {[%clk 0:00:09]} 23. h3 {[%clk 0:00:51]}  Nd5 {[%clk 0:00:08]} 24. Be5 {[%clk 0:00:50]}  Nf6 {[%clk 0:00:08]} 25. f3 {[%clk 0:00:37]}  Bd3 {[%clk 0:00:07]} 26. Rd1 {[%clk 0:00:36]}  Bc4 {[%clk 0:00:06]} 27. Qb4 {[%clk 0:00:15]}  Bxb3 {[%clk 0:00:05]} 28. Qxb3 {[%clk 0:00:15]}  Qd5 {[%clk 0:00:03]} 29. Qb2 {[%clk 0:00:09]}  Nd7 {[%clk 0:00:01]} 30. Bg3 {[%clk 0:00:08]}  Qc6 {[%clk 0:00:02]} 31. Rb1 {[%clk 0:00:08]}  b5 {[%clk 0:00:01]} 32. Bf2 {[%clk 0:00:07]}  Nb6 {[%clk 0:00:02]} 33. Rd1 {[%clk 0:00:06]}  Nc4 {[%clk 0:00:02]} 34. Qb3 {[%clk 0:00:05]}  Na5 {[%clk 0:00:02]} 35. Qd3 {[%clk 0:00:04]}  Nc4 {[%clk 0:00:03]} 36. e4 {[%clk 0:00:05]}  Rd8 {[%clk 0:00:03]} 37. Qb3 {[%clk 0:00:04]}  Nb6 {[%clk 0:00:03]} 38. d5 {[%clk 0:00:02]}  exd5 {[%clk 0:00:03]} 39. Qe3 {[%clk 0:00:01]}  Nc4 {[%clk 0:00:03]} 40. Qd4 {[%clk 0:00:02]}  Rd7 {[%clk 0:00:02]} 41. exd5 {[%clk 0:00:02]}  Qf6 {[%clk 0:00:02]} 42. Qxf6 {[%clk 0:00:02]}  gxf6 {[%clk 0:00:03]} 43. d6 {[%clk 0:00:03]}  Rxd6 {[%clk 0:00:03]} 44. Re1 {[%clk 0:00:03]}  Re6 {[%clk 0:00:03]} 45. Rd1 {[%clk 0:00:03]}  Re2 {[%clk 0:00:03]} 46. Rd8+ {[%clk 0:00:03]}  Kg7 {[%clk 0:00:03]} 47. a4 {[%clk 0:00:02]}  bxa4 {[%clk 0:00:03]} 48. Rc8 {[%clk 0:00:03]}  Ne5 {[%clk 0:00:03]} 49. Ra8 {[%clk 0:00:03]}  a3 {[%clk 0:00:02]} 50. Bd4 {[%clk 0:00:03]}  a2 {[%clk 0:00:02]} 51. Rxa6 {[%clk 0:00:03]}  Nd3 {[%clk 0:00:02]} 52. Bxf6+ {[%clk 0:00:03]}  Kg8 {[%clk 0:00:01]} 53. h4 {[%clk 0:00:04]}  Kh7 {[%clk 0:00:01]} 54. h5 {[%clk 0:00:04]}  Nf4 {[%clk 0:00:02]} 55. Ra8 {[%clk 0:00:04]}  Nxh5 {[%clk 0:00:02]} 56. Rh8+ {[%clk 0:00:03]}  Kg6 {[%clk 0:00:03]} 57. Be5 {[%clk 0:00:04]}  f6 {[%clk 0:00:03]} 58. Bd4 {[%clk 0:00:04]}  Ng7 {[%clk 0:00:03]} 59. Ra8 {[%clk 0:00:03]}  Rd2 {[%clk 0:00:03]} 60. Bc3 {[%clk 0:00:03]}  Rc2 {[%clk 0:00:03]} 61. Bd4 {[%clk 0:00:04]}  Nf5 {[%clk 0:00:04]} 62. Bxf6 {[%clk 0:00:03]}  Kxf6 {[%clk 0:00:04]} 63. Ra6+ {[%clk 0:00:04]}  Kg5 {[%clk 0:00:04]} 64. g4 {[%clk 0:00:05]}  Nh4 {[%clk 0:00:03]} 65. Ra5+ {[%clk 0:00:06]}  Kf4 {[%clk 0:00:03]} 66. Ra4+ {[%clk 0:00:06]}  Kg3 {[%clk 0:00:03]} 67. Kf1 {[%clk 0:00:07]}  Nxf3 {[%clk 0:00:03]} 68. Ra3 {[%clk 0:00:07]}  Rf2# {[%clk 0:00:04]} 0-1


[Site "https://www.chess.com"]

[Event "Titled Tuesday Blitz February 21 Early 2023"]
[White "Gamage, Wanshini Vidusama"]
[Black "Papayan, Oleg"]
[WhiteFideId "9953752"]
[BlackFideId "4193911"]
[WhiteElo "1089"]
[BlackElo "2253"]
[Result "0-1"]
[Round "06"]
[TimeControl "180+2"]
[Date "2023.02.21"]
[WhiteClock "0:01:08"]
[BlackClock "0:02:20"]

1. e4 {[%clk 0:03:00]}  d5 {[%clk 0:03:00]} 2. exd5 {[%clk 0:03:00]}  Qxd5 {[%clk 0:03:01]} 3. Nc3 {[%clk 0:02:59]}  Qd8 {[%clk 0:03:01]} 4. d4 {[%clk 0:02:58]}  c6 {[%clk 0:03:02]} 5. Nf3 {[%clk 0:02:57]}  Bf5 {[%clk 0:03:02]} 6. Bc4 {[%clk 0:02:51]}  e6 {[%clk 0:03:03]} 7. O-O {[%clk 0:02:51]}  Nd7 {[%clk 0:03:04]} 8. Re1 {[%clk 0:02:44]}  Be7 {[%clk 0:03:04]} 9. a4 {[%clk 0:02:38]}  a5 {[%clk 0:03:03]} 10. Bf4 {[%clk 0:02:32]}  Ngf6 {[%clk 0:03:04]} 11. Nh4 {[%clk 0:02:23]}  Bg4 {[%clk 0:03:04]} 12. f3 {[%clk 0:02:22]}  Bh5 {[%clk 0:03:03]} 13. g4 {[%clk 0:02:21]}  Bg6 {[%clk 0:02:58]} 14. Qe2 {[%clk 0:02:15]}  Nb6 {[%clk 0:02:57]} 15. Bb3 {[%clk 0:02:00]}  Nxg4 {[%clk 0:02:24]} 16. Nxg6 {[%clk 0:01:49]}  Qxd4+ {[%clk 0:02:24]} 17. Be3 {[%clk 0:01:28]}  Nxe3 {[%clk 0:02:23]} 18. Qxe3 {[%clk 0:01:10]}  Qxe3+ {[%clk 0:02:20]} 19. Rxe3 {[%clk 0:01:11]}  hxg6 {[%clk 0:02:21]} 20. Rd1 {[%clk 0:01:08]}  Bc5 {[%clk 0:02:20]} 0-1


[Site "https://www.chess.com"]

[Event "Titled Tuesday Blitz February 21 Early 2023"]
[White "Prudnykova, Olga"]
[Black "Gatterer, Florian"]
[WhiteFideId "14121093"]
[BlackFideId "811688"]
[WhiteElo "2268"]
[BlackElo "2170"]
[Result "1/2-1/2"]
[Round "06"]
[TimeControl "180+2"]
[Date "2023.02.21"]
[WhiteClock "0:02:16"]
[BlackClock "0:02:48"]

1. e4 {[%clk 0:02:55]}  c6 {[%clk 0:03:00]} 2. d4 {[%clk 0:02:55]}  d5 {[%clk 0:03:00]} 3. exd5 {[%clk 0:02:56]}  cxd5 {[%clk 0:03:01]} 4. c4 {[%clk 0:02:56]}  Nf6 {[%clk 0:03:00]} 5. Nc3 {[%clk 0:02:57]}  Nc6 {[%clk 0:03:00]} 6. Nf3 {[%clk 0:02:57]}  a6 {[%clk 0:03:01]} 7. Bg5 {[%clk 0:02:29]}  Be6 {[%clk 0:02:59]} 8. a3 {[%clk 0:02:26]}  g6 {[%clk 0:02:59]} 9. Bxf6 {[%clk 0:02:21]}  exf6 {[%clk 0:02:59]} 10. c5 {[%clk 0:02:18]}  Bg4 {[%clk 0:02:52]} 11. Be2 {[%clk 0:02:16]}  Bg7 {[%clk 0:02:48]} 12. h3 {[%clk 0:02:16]}  Bxf3 {[%clk 0:02:48]} 13. Bxf3 {[%clk 0:02:16]}  f5 {[%clk 0:02:48]} 1/2-1/2


[Site "https://www.chess.com"]

[Event "Titled Tuesday Blitz February 21 Early 2023"]
[White "Buscar, Michael"]
[Black "Rosenberg, Evan S"]
[WhiteFideId "2603616"]
[BlackFideId "2019299"]
[WhiteElo "2041"]
[BlackElo "1956"]
[Result "0-1"]
[Round "06"]
[TimeControl "180+2"]
[Date "2023.02.21"]
[WhiteClock "0:00:37"]
[BlackClock "0:01:07"]

1. e4 {[%clk 0:03:00]}  e5 {[%clk 0:02:59]} 2. Nf3 {[%clk 0:03:00]}  Nc6 {[%clk 0:03:00]} 3. Bc4 {[%clk 0:02:58]}  Nf6 {[%clk 0:03:00]} 4. Nc3 {[%clk 0:02:55]}  Nxe4 {[%clk 0:02:59]} 5. Bxf7+ {[%clk 0:02:54]}  Kxf7 {[%clk 0:03:00]} 6. Nxe4 {[%clk 0:02:54]}  d5 {[%clk 0:03:01]} 7. Neg5+ {[%clk 0:02:54]}  Kg8 {[%clk 0:03:01]} 8. h4 {[%clk 0:02:45]}  e4 {[%clk 0:02:57]} 9. Ng1 {[%clk 0:02:43]}  h6 {[%clk 0:02:49]} 10. N5h3 {[%clk 0:02:42]}  Qxh4 {[%clk 0:02:46]} 11. d3 {[%clk 0:02:35]}  Bc5 {[%clk 0:02:44]} 12. Bf4 {[%clk 0:02:27]}  Bxh3 {[%clk 0:02:37]} 13. Nxh3 {[%clk 0:02:26]}  e3 {[%clk 0:02:35]} 14. Qf3 {[%clk 0:02:05]}  exf2+ {[%clk 0:02:35]} 15. Kd2 {[%clk 0:01:54]}  Qd8 {[%clk 0:01:45]} 16. Nxf2 {[%clk 0:01:53]}  Bxf2 {[%clk 0:01:35]} 17. Qxf2 {[%clk 0:01:53]}  Qd7 {[%clk 0:01:33]} 18. Raf1 {[%clk 0:01:51]}  Rf8 {[%clk 0:01:30]} 19. Qc5 {[%clk 0:01:41]}  Kh7 {[%clk 0:01:28]} 20. Rh5 {[%clk 0:01:11]}  Qg4 {[%clk 0:01:16]} 21. Bxh6 {[%clk 0:00:37]}  Rxf1 {[%clk 0:01:07]} 0-1


[Site "https://www.chess.com"]

[Event "Titled Tuesday Blitz February 21 Early 2023"]
[White "Lerch, Philipp"]
[Black "SicilianPanzer"]
[WhiteFideId "4654129"]
[WhiteElo "2305"]
[BlackElo "2254"]
[Result "1-0"]
[Round "06"]
[TimeControl "180+2"]
[Date "2023.02.21"]
[WhiteClock "0:00:09"]
[BlackClock "0:00:02"]

1. b3 {[%clk 0:03:00]}  Nf6 {[%clk 0:02:58]} 2. Bb2 {[%clk 0:03:01]}  d6 {[%clk 0:02:58]} 3. g3 {[%clk 0:03:00]}  Nbd7 {[%clk 0:02:55]} 4. Bg2 {[%clk 0:03:00]}  g6 {[%clk 0:02:55]} 5. c4 {[%clk 0:03:00]}  Bg7 {[%clk 0:02:51]} 6. d3 {[%clk 0:02:59]}  O-O {[%clk 0:02:51]} 7. Nf3 {[%clk 0:02:58]}  e5 {[%clk 0:02:49]} 8. O-O {[%clk 0:02:58]}  c6 {[%clk 0:02:46]} 9. Nbd2 {[%clk 0:02:54]}  a5 {[%clk 0:02:42]} 10. a3 {[%clk 0:02:52]}  Qe7 {[%clk 0:02:34]} 11. Qc2 {[%clk 0:02:43]}  Re8 {[%clk 0:02:04]} 12. Rfd1 {[%clk 0:02:36]}  Nc5 {[%clk 0:01:57]} 13. Rac1 {[%clk 0:02:25]}  Bf5 {[%clk 0:01:50]} 14. Nh4 {[%clk 0:02:12]}  Bg4 {[%clk 0:01:46]} 15. Nf1 {[%clk 0:01:26]}  Qd7 {[%clk 0:01:40]} 16. Ne3 {[%clk 0:01:20]}  Bh3 {[%clk 0:01:37]} 17. d4 {[%clk 0:01:13]}  exd4 {[%clk 0:01:33]} 18. Bxd4 {[%clk 0:01:14]}  Nce4 {[%clk 0:01:11]} 19. Bb2 {[%clk 0:00:35]}  Bxg2 {[%clk 0:00:54]} 20. Nhxg2 {[%clk 0:00:33]}  Rad8 {[%clk 0:00:38]} 21. f3 {[%clk 0:00:28]}  Ng5 {[%clk 0:00:31]} 22. Bc3 {[%clk 0:00:22]}  a4 {[%clk 0:00:27]} 23. bxa4 {[%clk 0:00:21]}  h5 {[%clk 0:00:18]} 24. Qb2 {[%clk 0:00:16]}  Re6 {[%clk 0:00:15]} 25. Nf4 {[%clk 0:00:13]}  Rxe3 {[%clk 0:00:12]} 26. Bxf6 {[%clk 0:00:13]}  Bxf6 {[%clk 0:00:04]} 27. Qxf6 {[%clk 0:00:14]}  Qe7 {[%clk 0:00:03]} 28. Qxe7 {[%clk 0:00:11]}  Rxe7 {[%clk 0:00:04]} 29. c5 {[%clk 0:00:11]}  d5 {[%clk 0:00:04]} 30. Kf2 {[%clk 0:00:11]}  Ra8 {[%clk 0:00:03]} 31. Rd4 {[%clk 0:00:11]}  Nh7 {[%clk 0:00:02]} 32. e4 {[%clk 0:00:10]}  Nf6 {[%clk 0:00:02]} 33. Re1 {[%clk 0:00:09]}  dxe4 {[%clk 0:00:01]} 34. fxe4 {[%clk 0:00:10]}  Nd7 {[%clk 0:00:01]} 35. Nd3 {[%clk 0:00:09]}  Ne5 {[%clk 0:00:01]} 36. Nxe5 {[%clk 0:00:09]}  Rxe5 {[%clk 0:00:02]} 37. Rc1 {[%clk 0:00:09]}  Ra5 {[%clk 0:00:02]} 38. Rb4 {[%clk 0:00:09]}  Kg7 {[%clk 0:00:02]} 39. Rxb7 {[%clk 0:00:09]}  Rxa4 {[%clk 0:00:01]} 40. Rc7 {[%clk 0:00:08]}  Rexe4 {[%clk 0:00:01]} 41. Rxc6 {[%clk 0:00:08]}  Rxa3 {[%clk 0:00:02]} 42. Rc2 {[%clk 0:00:08]}  Re8 {[%clk 0:00:01]} 43. Rc7 {[%clk 0:00:09]}  Raa8 {[%clk 0:00:02]} 44. c6 {[%clk 0:00:09]}  Rac8 {[%clk 0:00:02]} 45. Rd7 {[%clk 0:00:09]}  Kf6 {[%clk 0:00:02]} 46. c7 {[%clk 0:00:09]}  Ke6 {[%clk 0:00:01]} 47. Rd3 {[%clk 0:00:08]}  Kf6 {[%clk 0:00:01]} 48. Rc6+ {[%clk 0:00:08]}  Kg7 {[%clk 0:00:01]} 49. Rd7 {[%clk 0:00:08]}  Re5 {[%clk 0:00:01]} 50. Rb6 {[%clk 0:00:08]}  Rf5+ {[%clk 0:00:02]} 51. Ke3 {[%clk 0:00:07]}  Rc5 {[%clk 0:00:03]} 52. Rb7 {[%clk 0:00:07]}  Rc6 {[%clk 0:00:03]} 53. Kd4 {[%clk 0:00:08]}  h4 {[%clk 0:00:04]} 54. gxh4 {[%clk 0:00:08]}  Rc1 {[%clk 0:00:04]} 55. Ke5 {[%clk 0:00:08]}  Rc5+ {[%clk 0:00:04]} 56. Kd6 {[%clk 0:00:08]}  Rc1 {[%clk 0:00:05]} 57. Rb8 {[%clk 0:00:08]}  Rd1+ {[%clk 0:00:05]} 58. Kc6 {[%clk 0:00:08]}  Rc1+ {[%clk 0:00:05]} 59. Kb7 {[%clk 0:00:08]}  R8xc7+ {[%clk 0:00:02]} 60. Rxc7 {[%clk 0:00:08]}  Rxc7+ {[%clk 0:00:02]} 61. Kxc7 {[%clk 0:00:09]} 1-0


[Site "https://www.chess.com"]

[Event "Titled Tuesday Blitz February 21 Early 2023"]
[White "Kohler, Aran"]
[Black "Shuvalov, Evgenij"]
[WhiteFideId "1002856"]
[BlackFideId "4187237"]
[WhiteElo "2010"]
[BlackElo "2038"]
[Result "0-1"]
[Round "06"]
[TimeControl "180+2"]
[Date "2023.02.21"]
[WhiteClock "0:00:17"]
[BlackClock "0:01:03"]

1. Nf3 {[%clk 0:03:00]}  Nf6 {[%clk 0:02:59]} 2. d4 {[%clk 0:03:00]}  g6 {[%clk 0:02:58]} 3. Bg5 {[%clk 0:02:59]}  Bg7 {[%clk 0:02:58]} 4. Nbd2 {[%clk 0:02:59]}  d5 {[%clk 0:02:58]} 5. e3 {[%clk 0:02:59]}  O-O {[%clk 0:02:54]} 6. Bd3 {[%clk 0:02:59]}  b6 {[%clk 0:02:53]} 7. c3 {[%clk 0:02:42]}  Bb7 {[%clk 0:02:52]} 8. h4 {[%clk 0:02:41]}  Nbd7 {[%clk 0:02:51]} 9. h5 {[%clk 0:02:41]}  Nxh5 {[%clk 0:02:48]} 10. Rxh5 {[%clk 0:02:41]}  gxh5 {[%clk 0:02:49]} 11. Nh4 {[%clk 0:02:41]}  Qe8 {[%clk 0:02:32]} 12. Qxh5 {[%clk 0:02:33]}  f5 {[%clk 0:02:32]} 13. Qxe8 {[%clk 0:02:13]}  Raxe8 {[%clk 0:02:31]} 14. Nxf5 {[%clk 0:02:09]}  e5 {[%clk 0:02:24]} 15. Nxg7 {[%clk 0:01:51]}  Kxg7 {[%clk 0:02:23]} 16. Bb5 {[%clk 0:01:41]}  c6 {[%clk 0:02:21]} 17. Be2 {[%clk 0:01:40]}  e4 {[%clk 0:02:02]} 18. Bf4 {[%clk 0:01:40]}  Nf6 {[%clk 0:01:45]} 19. Be5 {[%clk 0:01:38]}  Kg6 {[%clk 0:01:43]} 20. f4 {[%clk 0:01:35]}  Bc8 {[%clk 0:01:42]} 21. Bxf6 {[%clk 0:01:28]}  Kxf6 {[%clk 0:01:38]} 22. g4 {[%clk 0:01:29]}  Rg8 {[%clk 0:01:35]} 23. g5+ {[%clk 0:01:26]}  Ke7 {[%clk 0:01:35]} 24. Bh5 {[%clk 0:01:24]}  Ref8 {[%clk 0:01:34]} 25. Ke2 {[%clk 0:01:24]}  Bf5 {[%clk 0:01:34]} 26. Rg1 {[%clk 0:01:23]}  Kd6 {[%clk 0:01:33]} 27. Bg4 {[%clk 0:01:23]}  h6 {[%clk 0:01:25]} 28. Bh5 {[%clk 0:00:59]}  hxg5 {[%clk 0:01:22]} 29. fxg5 {[%clk 0:00:49]}  Rh8 {[%clk 0:01:20]} 30. Bg4 {[%clk 0:00:27]}  Rh2+ {[%clk 0:01:19]} 31. Ke1 {[%clk 0:00:27]}  Bxg4 {[%clk 0:01:10]} 32. Rxg4 {[%clk 0:00:27]}  Rff2 {[%clk 0:01:11]} 33. Nf1 {[%clk 0:00:27]}  Rhg2 {[%clk 0:01:05]} 34. g6 {[%clk 0:00:17]}  Rxf1+ {[%clk 0:01:03]} 0-1


[Site "https://www.chess.com"]

[Event "Titled Tuesday Blitz February 21 Early 2023"]
[White "Bambino Filho, Antonio Carlos"]
[Black "Burke, John F"]
[WhiteFideId "2113163"]
[BlackFideId "2052970"]
[WhiteElo "2144"]
[BlackElo "2013"]
[Result "1-0"]
[Round "06"]
[TimeControl "180+2"]
[Date "2023.02.21"]
[WhiteClock "0:00:48"]
[BlackClock "0:00:39"]

1. e4 {[%clk 0:02:59]}  c5 {[%clk 0:02:59]} 2. Nf3 {[%clk 0:03:00]}  Nc6 {[%clk 0:02:59]} 3. d4 {[%clk 0:02:59]}  cxd4 {[%clk 0:02:59]} 4. Nxd4 {[%clk 0:03:00]}  e6 {[%clk 0:03:00]} 5. Nc3 {[%clk 0:02:59]}  Qc7 {[%clk 0:03:00]} 6. Be3 {[%clk 0:02:58]}  a6 {[%clk 0:03:00]} 7. Qf3 {[%clk 0:02:58]}  Nf6 {[%clk 0:03:00]} 8. Qg3 {[%clk 0:02:52]}  Qxg3 {[%clk 0:02:58]} 9. hxg3 {[%clk 0:02:51]}  d6 {[%clk 0:02:57]} 10. Be2 {[%clk 0:02:48]}  Be7 {[%clk 0:02:57]} 11. g4 {[%clk 0:02:48]}  Nxd4 {[%clk 0:02:51]} 12. Bxd4 {[%clk 0:02:48]}  b5 {[%clk 0:02:51]} 13. g5 {[%clk 0:02:44]}  Nd7 {[%clk 0:02:48]} 14. f4 {[%clk 0:02:37]}  e5 {[%clk 0:02:47]} 15. Be3 {[%clk 0:02:32]}  exf4 {[%clk 0:02:47]} 16. Bxf4 {[%clk 0:02:32]}  Ne5 {[%clk 0:02:47]} 17. Nd5 {[%clk 0:02:33]}  Bd8 {[%clk 0:02:45]} 18. O-O-O {[%clk 0:02:27]}  Be6 {[%clk 0:02:45]} 19. Ne3 {[%clk 0:02:00]}  Ng6 {[%clk 0:02:41]} 20. g3 {[%clk 0:01:57]}  Rc8 {[%clk 0:02:31]} 21. Nf5 {[%clk 0:01:50]}  Bxf5 {[%clk 0:02:21]} 22. exf5 {[%clk 0:01:51]}  Nxf4 {[%clk 0:02:20]} 23. gxf4 {[%clk 0:01:52]}  Bb6 {[%clk 0:02:03]} 24. Rh3 {[%clk 0:01:50]}  Bc5 {[%clk 0:02:01]} 25. Rdh1 {[%clk 0:01:49]}  Kd7 {[%clk 0:01:50]} 26. Bd3 {[%clk 0:01:49]}  Rce8 {[%clk 0:01:36]} 27. Kd1 {[%clk 0:01:48]}  Be3 {[%clk 0:01:34]} 28. Rxh7 {[%clk 0:01:46]}  Rxh7 {[%clk 0:01:33]} 29. Rxh7 {[%clk 0:01:46]}  Bxf4 {[%clk 0:01:32]} 30. Rxg7 {[%clk 0:01:46]}  Rf8 {[%clk 0:01:25]} 31. a4 {[%clk 0:01:36]}  Kc6 {[%clk 0:01:23]} 32. axb5+ {[%clk 0:01:33]}  axb5 {[%clk 0:01:24]} 33. Ke2 {[%clk 0:01:30]}  Be5 {[%clk 0:01:23]} 34. Rh7 {[%clk 0:01:27]}  Bxb2 {[%clk 0:01:22]} 35. Kf3 {[%clk 0:01:25]}  Bc1 {[%clk 0:01:22]} 36. Kg4 {[%clk 0:01:22]}  b4 {[%clk 0:01:20]} 37. g6 {[%clk 0:01:10]}  fxg6 {[%clk 0:01:19]} 38. fxg6 {[%clk 0:01:11]}  Rf4+ {[%clk 0:01:10]} 39. Kg3 {[%clk 0:01:11]}  Rf8 {[%clk 0:01:01]} 40. Kg4 {[%clk 0:00:57]}  Kc5 {[%clk 0:00:44]} 41. Rc7+ {[%clk 0:00:53]}  Kd5 {[%clk 0:00:43]} 42. g7 {[%clk 0:00:51]}  Rf2 {[%clk 0:00:39]} 43. g8=Q+ {[%clk 0:00:48]} 1-0


[Site "https://www.chess.com"]

[Event "Titled Tuesday Blitz February 21 Early 2023"]
[White "Kuchava, Ana"]
[Black "Begunov, Konstantin"]
[WhiteFideId "13605348"]
[BlackFideId "4118510"]
[WhiteElo "2101"]
[BlackElo "2325"]
[Result "0-1"]
[Round "06"]
[TimeControl "180+2"]
[Date "2023.02.21"]
[WhiteClock "0:01:29"]
[BlackClock "0:01:59"]

1. d4 {[%clk 0:03:00]}  d5 {[%clk 0:03:00]} 2. c4 {[%clk 0:02:59]}  c6 {[%clk 0:03:00]} 3. Nf3 {[%clk 0:02:58]}  Nf6 {[%clk 0:03:01]} 4. Qb3 {[%clk 0:02:56]}  e6 {[%clk 0:03:00]} 5. Bg5 {[%clk 0:02:53]}  Be7 {[%clk 0:03:00]} 6. e3 {[%clk 0:02:51]}  O-O {[%clk 0:03:01]} 7. Nc3 {[%clk 0:02:51]}  Nbd7 {[%clk 0:03:01]} 8. Bd3 {[%clk 0:02:50]}  dxc4 {[%clk 0:02:59]} 9. Bxc4 {[%clk 0:02:49]}  b5 {[%clk 0:02:58]} 10. Bd3 {[%clk 0:02:49]}  a6 {[%clk 0:02:59]} 11. O-O {[%clk 0:02:48]}  c5 {[%clk 0:02:59]} 12. Rac1 {[%clk 0:02:49]}  c4 {[%clk 0:02:58]} 13. Bxc4 {[%clk 0:02:40]}  bxc4 {[%clk 0:02:59]} 14. Qxc4 {[%clk 0:02:41]}  Bb7 {[%clk 0:02:56]} 15. Qe2 {[%clk 0:02:31]}  Ne4 {[%clk 0:02:47]} 16. Bxe7 {[%clk 0:02:29]}  Qxe7 {[%clk 0:02:46]} 17. h3 {[%clk 0:02:18]}  Rfc8 {[%clk 0:02:43]} 18. a3 {[%clk 0:02:11]}  Nxc3 {[%clk 0:02:34]} 19. Rxc3 {[%clk 0:02:00]}  Rxc3 {[%clk 0:02:34]} 20. bxc3 {[%clk 0:02:01]}  Qxa3 {[%clk 0:02:33]} 21. Rb1 {[%clk 0:01:56]}  Be4 {[%clk 0:02:20]} 22. Rb2 {[%clk 0:01:47]}  Qxc3 {[%clk 0:02:17]} 23. Ne5 {[%clk 0:01:35]}  Nxe5 {[%clk 0:02:08]} 24. dxe5 {[%clk 0:01:36]}  Qxe5 {[%clk 0:02:04]} 25. Qd2 {[%clk 0:01:29]}  h6 {[%clk 0:01:59]} 0-1


[Site "https://www.chess.com"]